bitfinex-derivatives/quotes_SOLF0:USTF0_20250106
["timestamp","ask_amount","ask_price","bid_price","bid_amount"]
[1736130637216,2.3243,215.17,215.06,4.84001104]
[1736130637423,4.1957,215.18,215.06,4.84001104]
[1736130638618,4.1957,215.18,215.0,1.3809]
[1736130639129,4.1957,215.18,215.04,2.3256]
[1736130640031,4.1957,215.18,215.02,2.3258]
[1736130641027,0.74823124,215.17,215.02,2.3258]
[1736130641226,2.3253,215.09,215.02,2.3258]
[1736130641433,2.92,215.08,215.02,2.3258]
[1736130641629,2.92,215.08,215.03,2.3258]
[1736130642632,2.92,215.08,215.04,2.3257]
[1736130643027,8.01895199,215.16,214.93,9.20593163]
[1736130643229,2.92,215.15,215.08,2.3253]
[1736130643428,2.92,215.15,214.93,2.8844]
[1736130643633,2.3252,215.09,214.93,2.8844]
[1736130643836,2.92,215.08,215.03,2.3258]
[1736130644034,2.92,215.07,215.03,2.3258]
[1736130644228,2.92,215.06,215.03,2.3258]
[1736130645134,2.92,215.06,214.93,1.4965]
[1736130645337,4.2806,215.05,214.92,25.31538662]
[1736130645635,2.3264,214.98,214.92,25.31538662]
[1736130645836,2.9,214.97,214.92,25.31538662]
[1736130646574,5.2265,214.97,214.92,25.31538662]
[1736130646755,2.9,214.97,214.92,25.31538662]
[1736130646955,2.9,214.97,214.9,2.3271]
[1736130647543,2.3262,215.0,214.87,1.4536]
[1736130647754,2.9,214.99,214.87,1.4536]
[1736130647956,2.9,214.98,214.9,2.3272]
[1736130648160,2.9,214.97,214.87,1.4536]
[1736130648359,2.3258,215.04,214.87,1.4536]
[1736130648660,2.9,215.03,214.87,1.4536]
[1736130649469,6.6062,215.05,215.01,2.326]
[1736130649470,2.9,215.02,215.01,2.326]
[1736130652039,2.9,215.04,215.03,2.3258]
[1736130652829,2.9,215.04,214.92,2.8549]
[1736130653034,2.9,215.06,214.92,2.8549]
[1736130653538,2.9,215.06,215.05,2.3256]
[1736130654440,2.898,215.14,214.97,2.9]
[1736130654642,2.9,215.13,214.98,4.3825]
[1736130655134,5.2248,215.13,215.07,2.3254]
[1736130655331,2.9,215.12,215.07,2.3254]
[1736130656733,2.9,215.12,215.05,2.3255]
[1736130657136,2.9,215.12,214.98,1.4825]
[1736130657636,2.3254,215.07,215.01,2.3259]
[1736130657833,2.9,215.06,214.98,1.4825]
[1736130659344,2.9,215.06,215.02,2.3259]
[1736130660243,2.9,215.06,214.98,1.4825]
[1736130660838,2.9,215.06,215.03,2.3258]
[1736130661441,2.9,215.06,214.98,1.4825]
[1736130661842,2.9,215.06,215.01,2.326]
[1736130662444,5.2255,215.06,214.99,2.3262]
[1736130662643,2.9,215.06,214.99,2.3262]
[1736130663044,2.9,215.06,214.92,9.22430349]
[1736130663944,2.3259,215.02,214.92,9.22430349]
[1736130664149,2.8401,215.05,214.92,9.22430349]
[1736130664150,4.2901,215.05,214.92,9.22430349]
[1736130664342,4.2901,215.05,214.92,7.69810349]
[1736130664851,4.2901,215.05,214.96,2.3266]
[1736130665153,2.3259,215.03,214.96,2.3266]
[1736130665444,4.2901,215.05,214.96,2.3266]
[1736130666845,2.326,215.02,214.96,2.3266]
[1736130667244,2.326,215.02,214.97,2.3264]
[1736130667450,4.2901,215.05,214.92,7.69810349]
[1736130667844,2.9,215.06,214.92,7.69810349]
[1736130668251,5.2255,215.06,214.92,7.69810349]
[1736130668644,2.9,215.06,214.92,7.69810349]
[1736130668851,2.9,215.06,215.02,2.3259]
[1736130670750,2.9,215.06,214.92,14.01963512]
[1736130671252,2.3259,215.02,214.97,2.3264]
[1736130672352,2.326,215.01,214.95,2.3266]
[1736130672649,8.01895199,215.16,214.95,2.3266]
[1736130672650,2.9,215.0,214.95,2.3266]
[1736130672852,2.9,214.99,214.95,2.3266]
[1736130675148,2.9,214.99,214.92,6.25330349]
[1736130675648,2.9,214.99,214.97,2.3265]
[1736130675854,2.9,214.99,214.92,6.25330349]
[1736130676151,2.9,214.99,214.94,2.3268]
[1736130676348,2.9,214.99,214.92,6.25330349]
[1736130677248,2.9,214.99,214.97,2.3265]
[1736130677444,2.9,214.99,214.92,6.25330349]
[1736130678153,2.9,214.99,214.97,2.3264]
[1736130678751,2.9,214.99,214.98,2.3264]
[1736130678954,2.9,215.01,214.92,6.25330349]
[1736130679145,2.9,215.03,214.92,6.25330349]
[1736130679352,2.9,215.03,215.01,2.326]
[1736130679653,2.9,215.03,214.92,6.25330349]
[1736130680056,2.9,215.03,214.95,2.3267]
[1736130680260,2.9,215.03,214.92,31.56869011]
[1736130680958,2.9,215.03,214.93,4.04139246]
[1736130681359,2.9,215.03,214.94,1.4056]
[1736130681556,2.9,215.03,215.01,2.326]
[1736130682558,2.9,215.05,215.01,2.326]
[1736130683259,4.3542,215.15,214.94,1.4056]
[1736130683448,2.3251,215.11,215.05,2.3256]
[1736130683955,2.9,215.1,215.05,2.3256]
[1736130684152,2.9,215.09,214.94,1.4056]
[1736130684457,2.9,215.09,214.96,6.32153163]
[1736130684656,2.9,215.09,214.97,1.4484]
[1736130685259,2.9,215.09,214.97,7.76993163]
[1736130685653,2.9,215.09,215.05,2.3256]
[1736130686554,2.9,215.09,215.06,2.3255]
[1736130687158,2.9,215.09,215.04,2.3256]
[1736130687859,2.9,215.09,215.05,2.3255]
[1736130688161,2.9,215.09,214.97,1.4484]
[1736130689159,4.3542,215.15,214.97,4.3484]
[1736130689160,2.9,215.1,214.97,4.3484]
[1736130689356,2.9,215.11,215.09,2.3251]
[1736130690159,2.9,215.11,214.98,10.35835084]
[1736130690554,2.9,215.11,215.07,2.3253]
[1736130691960,2.9,215.11,215.0,1.5299]
[1736130692160,4.3542,215.15,215.0,1.5299]
[1736130692365,2.9,215.14,215.0,1.5299]
[1736130693065,2.9,215.14,215.04,2.3257]
[1736130693266,2.9,215.14,215.0,1.5299]
[1736130693860,2.9,215.13,215.11,2.3249]
[1736130694665,2.9,215.13,215.0,1.5299]
[1736130694871,2.9,215.13,215.0,7.85143163]
[1736130695359,2.3249,215.12,215.0,7.85143163]
[1736130695767,2.3249,215.12,215.0,1.5299]
[1736130696263,2.9,215.13,215.0,1.5299]
[1736130696866,2.3251,215.1,215.03,2.3257]
[1736130697064,2.3251,215.1,215.0,1.5299]
[1736130697267,2.9,215.13,214.97,7.76993163]
[1736130697670,2.9,215.13,214.97,1.4484]
[1736130698467,2.3253,215.08,215.03,2.3258]
[1736130698666,2.9,215.07,215.03,2.3258]
[1736130700066,2.3249,215.13,215.06,2.3255]
[1736130700271,2.9,215.12,214.97,1.4484]
[1736130701267,2.9,215.12,215.11,2.325]
[1736130701572,2.9,215.13,215.11,2.325]
[1736130702678,2.9,215.13,215.0,6.32153163]
[1736130703470,5.2248,215.13,215.07,2.3253]
[1736130703866,2.9,215.13,214.98,10.34884067]
[1736130704171,2.9,215.13,215.12,2.3249]
[1736130705264,2.9,215.13,215.02,1.4696]
[1736130705265,1.4883,215.23,215.03,1.4153]
[1736130705470,4.3657,215.22,215.03,1.4153]
[1736130706072,2.9,215.21,215.03,1.4153]
[1736130706571,2.9,215.2,215.04,10.34410374]
[1736130706971,2.9,215.2,215.18,2.3242]
[1736130707971,2.9,215.2,215.15,2.3245]
[1736130709275,2.9,215.2,215.09,2.9]
[1736130709475,2.9,215.2,215.05,4.3397]
[1736130710874,2.3241,215.19,215.12,2.3248]
[1736130711175,2.3241,215.19,215.05,4.3397]
[1736130712976,2.3241,215.19,215.13,2.3247]
[1736130713976,2.9,215.2,215.14,2.3246]
[1736130714181,2.9,215.2,215.05,4.3397]
[1736130714776,2.9014,215.23,215.05,4.3397]
[1736130715078,2.9,215.22,215.05,4.3397]
[1736130715279,2.9014,215.23,215.05,10.66123163]
[1736130715482,2.9,215.22,215.05,10.66123163]
[1736130716075,2.9,215.22,215.1,2.3251]
[1736130716280,2.9,215.22,215.06,4.02705396]
[1736130717080,1.4327,215.36,215.06,4.02705396]
[1736130717281,6.53084015,215.35,215.06,4.02705396]
[1736130717577,2.3232,215.28,215.21,2.3238]
[1736130717777,2.9,215.27,215.21,2.3238]
[1736130717977,2.3237,215.23,215.17,2.3242]
[1736130718178,5.2237,215.23,215.13,1.4297]
[1736130718379,2.9,215.23,215.12,2.9]
[1736130718576,2.3241,215.2,215.08,26.74508662]
[1736130718770,2.9,215.23,215.08,26.74508662]
[1736130718971,2.9,215.23,215.08,20.42355499]
[1736130719272,2.3241,215.19,215.13,2.3247]
[1736130720274,2.9,215.23,215.08,1.4297]
[1736130720476,2.324,215.21,215.08,1.4297]
[1736130720671,2.9,215.23,215.08,1.4297]
[1736130721079,5.2237,215.23,215.08,1.4297]
[1736130721282,2.9,215.23,215.08,1.4297]
[1736130721486,2.9,215.22,215.18,2.3241]
[1736130721781,2.9,215.22,215.08,1.4297]
[1736130722172,2.9,215.22,215.21,2.3239]
[1736130722382,2.9,215.25,215.12,2.9]
[1736130722577,2.9,215.25,215.08,1.4297]
[1736130722880,2.9,215.25,215.08,4.3297]
[1736130723076,4.3263,215.25,215.08,4.3297]
[1736130723286,2.324,215.21,215.14,2.3246]
[1736130723980,4.3263,215.25,215.08,1.4297]
[1736130724583,4.3263,215.25,215.05,1.4397]
[1736130724785,0.74800571,215.24,215.05,1.4397]
[1736130726182,2.3244,215.16,215.03,1.3937]
[1736130726383,2.9,215.15,215.03,1.3937]
[1736130726583,2.9,215.15,215.1,2.3251]
[1736130727380,2.9,215.15,215.11,2.325]
[1736130727687,2.9,215.15,215.03,1.3937]
[1736130727983,2.9,215.15,215.04,2.9]
[1736130728982,1.4263,215.25,215.04,2.9]
[1736130729185,2.9,215.24,215.04,2.9]
[1736130729982,2.9,215.24,215.04,9.22153163]
[1736130730483,2.3241,215.19,215.04,9.22153163]
[1736130730683,2.9,215.24,215.04,9.22153163]
[1736130730887,2.9,215.24,215.05,4.03480995]
[1736130732489,2.3239,215.21,215.15,2.3245]
[1736130732787,2.9,215.24,215.05,10.35634158]
[1736130732985,2.3241,215.2,215.14,2.3246]
[1736130733486,2.9,215.19,215.14,2.3246]
[1736130733884,1.4263,215.25,215.05,6.32153163]
[1736130734087,2.3242,215.19,215.12,2.3248]
[1736130734278,2.3242,215.19,215.05,6.32153163]
[1736130734684,2.3242,215.19,215.13,2.3246]
[1736130734982,2.9,215.24,215.05,6.32153163]
[1736130735178,2.9,215.24,215.16,2.3243]
[1736130735789,1.4263,215.25,215.1,2.325]
[1736130735991,2.9,215.24,215.05,6.32153163]
[1736130736287,2.9,215.23,215.08,25.31538662]
[1736130736494,5.2238,215.23,215.16,2.3243]
[1736130737491,5.2238,215.23,215.17,2.3243]
[1736130738594,2.9,215.23,215.1,2.9]
[1736130738789,2.9,215.23,215.1,4.2988]
[1736130738984,2.9,215.23,215.11,1.4556]
[1736130739181,2.9,215.23,215.15,2.3245]
[1736130739488,2.9,215.23,215.11,1.4556]
[1736130741487,2.9,215.23,215.18,2.3242]
[1736130741792,2.9,215.23,215.11,1.4556]
[1736130741991,2.3238,215.22,215.16,2.3244]
[1736130742392,2.9,215.23,215.16,2.3244]
[1736130743390,2.3239,215.21,215.16,2.3244]
[1736130743686,2.9,215.23,215.16,2.3244]
[1736130743890,2.9,215.23,215.14,2.3246]
[1736130744091,2.9,215.23,215.11,1.4556]
[1736130744287,2.9,215.23,215.11,2.3249]
[1736130744488,2.9,215.23,215.07,25.31538662]
[1736130744688,2.3246,215.15,215.07,6.32153163]
[1736130744995,2.9,215.14,215.07,8.64683163]
[1736130745190,2.9,215.13,215.07,8.64683163]
[1736130745389,5.2248,215.13,215.07,8.64683163]
[1736130745589,2.9,215.13,215.07,8.64683163]
[1736130745892,2.9,215.13,215.05,2.3255]
[1736130747386,2.9,215.13,214.98,28.21538662]
[1736130747788,2.9,215.13,214.98,9.22153163]
[1736130747990,5.2248,215.13,215.06,2.3255]
[1736130749694,5.2248,215.13,214.99,25.31538662]
[1736130749896,5.2248,215.13,215.07,2.3254]
[1736130752102,5.2248,215.13,214.99,25.31538662]
[1736130752403,5.2248,215.13,215.08,2.3253]
[1736130754300,2.9,215.13,214.99,25.31538662]
[1736130754492,5.2248,215.13,214.99,25.31538662]
[1736130755300,5.2248,215.13,214.99,10.36531999]
[1736130756397,5.2248,215.13,215.07,2.3253]
[1736130756597,2.325,215.11,214.99,10.36531999]
[1736130756997,2.325,215.11,214.98,2.9]
[1736130757505,2.325,215.11,215.05,2.3256]
[1736130758192,2.325,215.11,214.98,2.9]
[1736130758403,2.3249,215.12,215.06,2.3255]
[1736130758697,2.9,215.13,214.98,2.9]
[1736130758899,2.9,215.13,215.08,2.3253]
[1736130760406,2.9,215.13,215.1,2.3251]
[1736130760604,2.9,215.14,214.98,28.21538662]
[1736130760906,2.3244,215.16,215.1,2.325]
[1736130761107,2.9,215.15,215.1,2.325]
[1736130761905,2.9,215.15,215.11,2.3249]
[1736130762104,2.9,215.15,215.0,6.32153163]
[1736130762505,2.3241,215.2,215.14,2.3245]
[1736130762805,2.9,215.19,215.05,2.9]
[1736130763007,2.9,215.19,215.06,2.968]
[1736130763206,2.9,215.19,215.15,2.3244]
[1736130764505,2.9,215.19,215.16,2.3244]
[1736130765305,2.3238,215.22,215.06,10.81183163]
[1736130765505,2.9,215.21,215.17,2.3243]
[1736130765810,2.9,215.21,215.06,10.81183163]
[1736130766705,2.9,215.21,215.07,29.35227906]
[1736130766909,2.9,215.21,215.11,2.3249]
[1736130767110,2.9,215.21,215.08,6.32153163]
[1736130767817,54.6063,215.25,215.08,6.32153163]
[1736130768116,8.01407311,215.3,215.08,6.32153163]
[1736130768314,2.9,215.29,215.08,6.32153163]
[1736130768810,2.9,215.29,215.1,25.31538662]
[1736130769011,2.9,215.29,215.11,2.9]
[1736130769418,2.9,215.29,215.16,2.3244]
[1736130769615,2.9,215.29,215.17,5.8332]
[1736130770018,2.9,215.29,215.24,2.3236]
[1736130773922,10.33697311,215.3,215.24,2.3236]
[1736130774122,13.21697311,215.3,215.24,2.3236]
[1736130775122,4.3499,215.36,215.17,5.8332]
[1736130775326,2.88,215.35,215.18,1.4946]
[1736130775827,2.88,215.35,215.32,2.3227]
[1736130776031,1.3891,215.41,215.25,2.88]
[1736130776225,2.3221,215.38,215.26,2.9269]
[1736130776426,2.3221,215.38,215.33,2.3225]
[1736130776627,2.88,215.4,215.26,2.9269]
[1736130776820,1.3891,215.41,215.26,4.4215]
[1736130777020,2.88,215.42,215.26,4.4215]
[1736130777821,2.3214,215.45,215.26,4.4215]
[1736130778027,2.88,215.44,215.26,4.4215]
[1736130778230,3.7102,215.47,215.32,2.3227]
[1736130778431,4.2691,215.47,215.33,2.88]
[1736130778825,4.2691,215.47,215.4,2.3218]
[1736130779024,4.2691,215.47,215.33,2.88]
[1736130780425,4.2691,215.47,215.4,2.3218]
[1736130780924,8.00788776,215.5,215.33,2.88]
[1736130781118,2.9331,215.54,215.33,2.88]
[1736130782029,2.88,215.55,215.5,2.3207]
[1736130782420,2.88,215.55,215.45,2.88]
[1736130783328,2.88,215.55,215.46,1.4709]
[1736130783627,2.88,215.59,215.51,2.3206]
[1736130783827,5.1998,215.6,215.51,2.3206]
[1736130784022,2.88,215.6,215.51,2.3206]
[1736130784228,2.3198,215.59,215.51,2.3206]
[1736130785321,2.9331,215.65,215.46,4.3665]
[1736130785721,2.9331,215.65,215.56,2.3201]
[1736130785921,2.88,215.64,215.56,2.3201]
[1736130786126,2.88,215.64,215.51,2.88]
[1736130787122,2.88,215.64,215.54,2.3202]
[1736130787323,2.88,215.64,215.51,2.88]
[1736130787529,2.88,215.64,215.46,4.3665]
[1736130787824,2.88,215.64,215.47,2.88]
[1736130788431,2.3197,215.61,215.52,2.3205]
[1736130788632,2.88,215.64,215.47,2.88]
[1736130788931,2.9331,215.65,215.47,2.88]
[1736130789231,2.88,215.68,215.47,2.88]
[1736130790030,5.1989,215.68,215.59,2.3197]
[1736130790225,2.3189,215.68,215.59,2.3197]
[1736130790434,2.88,215.68,215.58,2.3198]
[1736130790630,2.88,215.68,215.56,4.4722]
[1736130791031,2.319,215.67,215.59,2.3198]
[1736130793635,2.88,215.69,215.56,1.4906]
[1736130793933,2.88,215.69,215.54,2.88]
[1736130794636,2.3194,215.63,215.56,2.3201]
[1736130794930,2.88,215.63,215.35,198.359]
[1736130795135,2.3197,215.6,215.51,2.3206]
[1736130795432,2.8042,215.62,215.51,2.3206]
[1736130795732,2.8042,215.62,215.48,2.88]
[1736130795929,2.8042,215.62,215.49,1.4926]
[1736130796128,2.8042,215.62,215.49,4.4324]
[1736130796936,2.88,215.63,215.49,4.4324]
[1736130797232,2.88,215.67,215.49,4.4324]
[1736130797430,2.88,215.69,215.49,4.4324]
[1736130798530,2.3193,215.64,215.49,4.4324]
[1736130799334,2.3193,215.64,215.57,2.32]
[1736130799729,2.3191,215.66,215.54,2.88]
[1736130799934,2.3191,215.66,215.58,2.3198]
[1736130800134,2.88,215.68,215.54,2.88]
[1736130801036,5.1989,215.68,215.6,2.3197]
[1736130801434,5.1989,215.68,215.54,2.88]
[1736130801833,2.88,215.7,215.54,2.88]
[1736130802234,2.3187,215.69,215.54,2.88]
[1736130802435,2.88,215.7,215.54,2.88]
[1736130803236,2.3189,215.67,215.61,2.3196]
[1736130804233,2.88,215.69,215.49,4.4324]
[1736130804539,2.3193,215.64,215.58,2.3198]
[1736130805633,2.88,215.69,215.5,2.88]
[1736130805835,1.5009,215.63,215.5,2.88]
[1736130806140,5.8078,215.62,215.49,4.3726]
[1736130806339,2.3198,215.59,215.54,2.3203]
[1736130806737,5.8078,215.62,215.41,2.9151]
[1736130806938,5.8078,215.62,215.42,4.3817]
[1736130807634,5.8078,215.62,215.42,1.5017]
[1736130808033,5.8078,215.62,215.43,2.88]
[1736130808442,8.1274,215.62,215.54,2.3202]
[1736130808631,8.1274,215.62,215.49,2.88]
[1736130809237,8.1274,215.62,215.52,2.3205]
[1736130809536,8.1274,215.62,215.49,2.88]
[1736130810639,2.3196,215.61,215.49,2.88]
[1736130811443,2.3198,215.59,215.53,2.3204]
[1736130811744,5.8078,215.62,215.49,2.88]
[1736130812546,2.3199,215.58,215.52,2.3206]
[1736130812741,5.8078,215.62,215.52,2.3206]
[1736130813245,2.3198,215.59,215.53,2.3204]
[1736130813546,5.8078,215.62,215.49,2.88]
[1736130813749,2.3197,215.6,215.49,2.88]
[1736130813944,5.8078,215.62,215.53,2.3204]
[1736130814546,2.3198,215.59,215.53,2.3204]
[1736130816441,2.3197,215.6,215.54,2.3203]
[1736130818348,5.8078,215.62,215.49,2.88]
[1736130818544,8.1274,215.62,215.49,2.88]
[1736130818743,2.9278,215.62,215.49,2.88]
[1736130819140,2.9278,215.62,215.5,4.02341022]
[1736130819340,1.5195,215.62,215.5,5.45801022]
[1736130819650,1.5009,215.63,215.5,8.40511022]
[1736130820045,1.5009,215.63,215.5,4.3817]
[1736130821652,2.3196,215.61,215.55,2.3202]
[1736130821848,1.5009,215.63,215.5,4.3146]
[1736130822052,2.88,215.61,215.5,2.88]
[1736130823053,2.3198,215.59,215.53,2.3204]
[1736130823245,2.88,215.61,215.5,2.88]
[1736130823549,2.88,215.61,215.55,2.3201]
[1736130824346,2.88,215.61,215.48,6.32153163]
[1736130824547,2.88,215.61,215.49,2.88]
[1736130824948,2.3199,215.58,215.53,2.3204]
[1736130825150,2.88,215.61,215.48,25.31538662]
[1736130825355,2.88,215.61,215.47,9.20153163]
[1736130825746,2.88,215.61,215.47,6.32153163]
[1736130826352,2.88,215.61,215.45,25.31538662]
[1736130826552,2.3204,215.54,215.47,2.3211]
[1736130827354,2.3202,215.56,215.47,2.3211]
[1736130827554,2.3202,215.56,215.42,6.32153163]
[1736130827850,2.88,215.61,215.42,6.32153163]
[1736130828155,2.88,215.61,215.52,2.3205]
[1736130828647,2.3198,215.6,215.42,6.32153163]
[1736130828853,2.88,215.61,215.53,2.3204]
[1736130829248,2.3199,215.58,215.53,2.3204]
[1736130829753,2.3198,215.59,215.53,2.3204]
[1736130829955,2.88,215.61,215.43,6.32153163]
[1736130830145,1.5009,215.63,215.54,2.3203]
[1736130830346,2.88,215.62,215.54,2.3203]
[1736130831145,2.3197,215.6,215.54,2.3203]
[1736130831346,2.3197,215.6,215.55,2.3202]
[1736130831755,2.88,215.62,215.45,25.31538662]
[1736130832052,2.88,215.62,215.57,2.32]
[1736130833551,5.1995,215.62,215.57,2.32]
[1736130834854,2.3196,215.61,215.52,2.3205]
[1736130835149,1.5009,215.63,215.49,2.88]
[1736130835355,1.5009,215.63,215.53,2.3204]
[1736130835545,1.5009,215.63,215.49,2.88]
[1736130836554,1.5009,215.63,215.5,10.34838194]
[1736130836853,1.5009,215.63,215.59,2.3197]
[1736130837054,1.5009,215.63,215.5,10.34838194]
[1736130837256,1.5009,215.63,215.51,2.88]
[1736130837454,2.88,215.62,215.51,2.88]
[1736130838652,2.3197,215.6,215.51,2.88]
[1736130838858,2.88,215.62,215.47,26.73948662]
[1736130839060,2.88,215.62,215.47,1.4241]
[1736130839251,2.88,215.62,215.47,4.3041]
[1736130840461,2.3199,215.58,215.52,2.3205]
[1736130840656,2.88,215.62,215.47,4.3041]
[1736130841361,2.88,215.62,215.56,2.3201]
[1736130841362,2.3196,215.61,215.56,2.3201]
[1736130841561,2.88,215.62,215.47,4.3041]
[1736130841958,1.5009,215.63,215.47,4.3041]
[1736130842364,1.5009,215.63,215.5,6.32153163]
[1736130842561,1.5009,215.63,215.53,2.3203]
[1736130842763,1.5009,215.63,215.53,2.88]
[1736130842956,2.88,215.65,215.53,2.88]
[1736130843670,2.9144,215.66,215.62,2.3194]
[1736130843967,1.3913,215.66,215.54,2.9631]
[1736130844158,1.4907,215.72,215.54,2.9631]
[1736130844357,2.88,215.71,215.55,1.4536]
[1736130844557,2.3188,215.69,215.59,2.3197]
[1736130844763,2.88,215.71,215.55,1.4536]
[1736130845359,5.1986,215.71,215.55,1.4536]
[1736130846270,2.3188,215.69,215.55,1.4536]
[1736130846467,2.88,215.71,215.55,1.4536]
[1736130846669,2.88,215.71,215.63,2.3194]
[1736130847572,2.3187,215.7,215.63,2.3194]
[1736130848470,2.88,215.71,215.63,2.3194]
[1736130848670,2.3189,215.68,215.63,2.3194]
[1736130849270,2.319,215.67,215.61,2.3195]
[1736130849474,2.88,215.71,215.55,1.4536]
[1736130850075,2.88,215.71,215.59,2.3198]
[1736130850375,2.88,215.71,215.55,1.4536]
[1736130851568,2.3193,215.65,215.6,2.3197]
[1736130851873,5.1993,215.65,215.6,2.3197]
[1736130852276,2.3193,215.65,215.61,2.3196]
[1736130853876,2.88,215.66,215.48,6.32153163]
[1736130854173,1.506,215.65,215.49,4.3799]
[1736130854579,2.8455,215.64,215.49,4.3799]
[1736130855081,2.8455,215.64,215.49,1.4999]
[1736130856478,2.3196,215.61,215.56,2.3201]
[1736130856672,2.8455,215.64,215.49,1.4999]
[1736130856877,5.7255,215.64,215.49,1.4999]
[1736130857076,5.7255,215.64,215.56,2.3201]
[1736130857276,5.7255,215.64,215.49,1.4999]
[1736130857582,5.7255,215.64,215.53,2.3204]
[1736130858275,2.3196,215.61,215.53,2.3204]
[1736130858580,5.7255,215.64,215.53,2.3204]
[1736130859182,2.3199,215.59,215.53,2.3204]
[1736130859478,2.88,215.58,215.49,1.4999]
[1736130859878,2.88,215.58,215.56,2.32]
[1736130860181,2.8455,215.64,215.49,1.4999]
[1736130860182,2.88,215.62,215.49,1.4999]
[1736130860483,5.7255,215.64,215.49,1.4999]
[1736130860677,4.2808,215.64,215.49,1.4999]
[1736130861371,2.3197,215.61,215.49,1.4999]
[1736130861778,4.2808,215.64,215.49,1.4999]
[1736130861978,2.3199,215.59,215.53,2.3204]
[1736130862173,1.5252,215.63,215.53,2.3204]
[1736130862576,2.3199,215.58,215.53,2.3204]
[1736130862979,2.88,215.58,215.51,2.3206]
[1736130863180,2.32,215.57,215.46,2.88]
[1736130864484,5.1999,215.58,215.52,2.3205]
[1736130864681,2.88,215.58,215.46,2.88]
[1736130865589,2.88,215.62,215.46,2.88]
[1736130866181,1.4008,215.64,215.6,2.3197]
[1736130867481,1.4887,215.72,215.53,1.45]
[1736130867680,1.4103,215.71,215.54,3.016]
[1736130867893,128.32920363,215.82,215.54,3.016]
[1736130867894,7.96570816,215.81,215.55,53.08]
[1736130868086,3.37910816,215.81,215.55,53.08]
[1736130868283,124.67580363,215.82,215.55,53.08]
[1736130868485,18.36569438,215.82,215.56,13.96]
[1736130868688,18.36569438,215.87,215.56,13.96]
[1736130868894,18.36569438,215.87,215.58,13.96]
[1736130869082,18.36569438,215.87,215.85,2.3169]
[1736130869587,160.41150453,215.88,215.86,3.89708172]
[1736130869883,160.41150453,215.88,215.87,3.89708172]
[1736130870088,2.88,216.02,215.92,2.3162]
[1736130870480,2.315,216.04,215.91,2.3163]
[1736130870686,3.08,216.03,215.98,6.32153163]
[1736130871386,3.08,216.03,215.93,45.07748799]
[1736130871387,3.08,216.03,215.95,6.32153163]
[1736130871591,3.08,216.03,215.93,18.99385499]
[1736130871892,2.3152,216.02,215.95,18.99385499]
[1736130872281,3.08,216.03,215.95,0.66815499]
[1736130872480,3.08,216.03,215.81,154.27699371]
[1736130872481,3.08,216.03,215.94,48.16094862]
[1736130873088,2.316,215.95,215.92,6.22656849]
[1736130873287,3.08,215.94,215.9,18.67970549]
[1736130873489,3.08,215.94,215.86,48.16094862]
[1736130874589,3.08,215.94,215.82,2.3173]
[1736130875190,5.3961,215.94,215.84,2.3171]